Workbook

Sheet 11、全市公共预算收入表
A1: 表11
A2: 2019年随州市地方一般预算收入表
A4: 科目编码 | B4: 科目名称 | C4: 19随州市 | D4: 增幅
B5: 一般预算收入合计 | C5: 511707 | D5: 8.00%
A6: 101 | B6: 税收收入 | C6: 399665 | D6: 10.48%
B7: 国内增值税（含改征增值税） | C7: 177469 | D7: 10.50%
A8: 10103 | B8: 营业税 | C8: 193 | D8: -22.18%
A9: 10104 | B9: 企业所得税 | C9: 41824 | D9: 10.50%
A10: 10106 | B10: 个人所得税 | C10: 18875 | D10: 10.50%
A11: 10107 | B11: 资源税 | C11: 8707 | D11: 10.50%
A12: 10109 | B12: 城市维护建设税 | C12: 30999 | D12: 10.50%
A13: 10110 | B13: 房产税 | C13: 10011 | D13: 10.50%
A14: 10111 | B14: 印花税 | C14: 4946 | D14: 10.50%
A15: 10112 | B15: 城镇土地使用税 | C15: 9756 | D15: 10.50%
A16: 10113 | B16: 土地增值税 | C16: 27917 | D16: 10.50%
A17: 10114 | B17: 车船税 | C17: 7723 | D17: 10.50%
A18: 10118 | B18: 耕地占用税 | C18: 32868 | D18: 10.50%
A19: 10119 | B19: 契税 | C19: 27710 | D19: 10.50%
A20: 10121 | B20: 环境保护税 | C20: 667 | D20: 10.50%
A21: 103 | B21: 非税收入 | C21: 112042 | D21: 0.00%
A22: 10302 | B22: 专项收入 | C22: 24534 | D22: 0.00%
A23: 10304 | B23: 行政事业性收费收入 | C23: 26307 | D23: 0.00%
A24: 10305 | B24: 罚没收入 | C24: 19565 | D24: 0.00%
A25: 10306 | B25: 国有资本经营收入 | C25: 40 | D25: 0.00%
A26: 10307 | B26: 国有资源（资产）有偿使用收入 | C26: 36982 | D26: 0.00%
A27: 10308 | B27: 捐赠收入 | C27: 757 | D27: 0.00%
A28: 10309 | B28: 政府住房基金收入 | C28: 2684 | D28: 0.00%
A29: 10399 | B29: 其他收入 | C29: 1173 | D29: 0.00%
A30: 备注：本年累计和上年同期均为实际金库数。

Sheet 12、全市公共预算支出表
A1: 表12
A2: 2019年随州市一般公共预算支出预算表
C3: 单位：万元
A4: 项 目 | B4: 2018年 完成数 | C4: 2019年 预算数
A5: 一、一般公共服务支出 | B5: 179102 | C5: 175544
A6: 二、公共安全支出 | B6: 46692 | C6: 46825
A7: 三、教育支出 | B7: 237314 | C7: 235866
A8: 四、科学技术支出 | B8: 15254 | C8: 15177
A9: 五、文化旅游体育与传媒支出 | B9: 14361 | C9: 13787
A10: 六、社会保障和就业支出 | B10: 274697 | C10: 276758
A11: 七、卫生健康支出 | B11: 183683 | C11: 172401
A12: 八、节能环保支出 | B12: 17470 | C12: 14562
A13: 九、城乡社区支出 | B13: 85339 | C13: 86621
A14: 十、农林水支出 | B14: 168392 | C14: 166801
A15: 十一、交通运输支出 | B15: 77900 | C15: 78114
A16: 十二、资源勘探信息等支出 | B16: 25243 | C16: 31767
A17: 十三、商业服务业等支出 | B17: 8159 | C17: 8004
A18: 十四、金融支出
A19: 十五、援助其他地区支出 | B19: 167 | C19: 173
A20: 十六、自然资源海洋气象等支出 | B20: 31102 | C20: 29426
A21: 十七、住房保障支出 | B21: 78364 | C21: 62218
A22: 十八、粮油物资储备支出 | B22: 11299 | C22: 13137
A23: 十九、灾害防治及应急管理支出 | B23: 3466 | C23: 4898
A24: 二十、预备费 | B24: 3300 | C24: 7350
A25: 二十一、其他支出 | B25: 38504 | C25: 39641
A26: 二十一、债务付息支出 | B26: 23227 | C26: 28993
A27: 二十二、债务发行费用支出 | B27: 110 | C27: 105
A29: 支出合计 | B29: 1523144 | C29: 1508170

Sheet 13、本级公共预算收入
A1: 附表13
A2: 市本级2019年一般公共预算收入明细表
C3: 单位：万元
A4: 科目 | B4: 项 目 | C4: 预算数 | D4: 备注
B5: 一、市本级一般公共预算收入 | C5: =C6+C22 -> 122366
A6: 101 | B6: （一）税收收入 | C6: =SUM(C7:C21) -> 88488
A7: 10101 | B7: 增值税 | C7: 34709
A8: 10103 | B8: 营业税 | C8: 212
A9: 10104 | B9: 企业所得税 | C9: 12071
A10: 10106 | B10: 个人所得税 | C10: 7143
A11: 10107 | B11: 资源税 | C11: 0
A12: 10109 | B12: 城市维护建设税 | C12: 5750
A13: 10110 | B13: 房产税 | C13: 2525
A14: 10111 | B14: 印花税 | C14: 899
A15: 10112 | B15: 城镇土地使用税 | C15: 1234
A16: 10113 | B16: 土地增值税 | C16: 6942
A17: 10114 | B17: 车船税 | C17: 4155
A18: 10118 | B18: 耕地占用税 | C18: 9135
A19: 10119 | B19: 契税 | C19: 3677
A20: 10120 | B20: 烟叶税 | C20: 0
A21: 10199 | B21: 其他税收收入（环境保护税） | C21: 34
A22: 103 | B22: （二）非税收入 | C22: =SUM(C23:C30) -> 33878
A23: 10302 | B23: 专项收入 | C23: 8186
A24: 10304 | B24: 行政事业性收费收入 | C24: 9002
A25: 10305 | B25: 罚没收入 | C25: 5382
A26: 10306 | B26: 国有资本经营收入 | C26: 40
A27: 10307 | B27: 国有资源（资产）有偿使用收入 | C27: 8098
A28: 10308 | B28: 捐赠收入 | C28: 13
A29: 10309 | B29: 政府住房基金收入 | C29: 2397
A30: 10399 | B30: 其他收入 | C30: 760
A32: 110 | B32: 二、转移性收入 | C32: =C33+C35+C70+C91+C94+C97+C102 -> 183586
A33: 11001 | B33: （一）返还性收入 | C33: =SUM(C34:C34) -> 19054
A34: 1100199 | B34: 其它返还性收入 | C34: 19054
A35: 11002 | B35: （二）一般性转移支付收入 | C35: =SUM(C36:C69) -> 39630
A36: 1100202 | B36: 均衡性转移支付收入 | C36: 2864
A37: 1100207 | B37: 县级基本财力保障机制奖补资金收入 | C37: 24220
A38: 1100208 | B38: 结算补助收入 | C38: -35917
A39: 1100299 | B39: 激励性转移支付收入 | C39: 2237
A40: 11002 | B40: 政策性转移支付收入 | C40: 9737
A41: 1100215 | B41: 成品油税费改革转移支付补助收入 | C41: 3370
A42: 1100220 | B42: 基层公检法司转移支付收入 | C42: 4207
A43: 1100221 | B43: 城乡义务教育转移支付收入 | C43: 502
A44: 1100222 | B44: 基本养老金转移支付收入 | C44: 9684
A45: 1100225 | B45: 产粮大县奖励资金收入 | C45: 140
A46: 1100226 | B46: 重点生态功能区转移支付收入 | C46: 0
A47: 1100227 | B47: 固定数额补助收入 | C47: 13066
A48: 1100228 | B48: 革命老区转移支付收入 | C48: 195
A49: 1100241 | B49: 一般公共服务共同财政事权转移支付收入
A50: 1100242 | B50: 外交共同财政事权转移支付收入
A51: 1100243 | B51: 国防支出共同财政事权转移支付收入
A52: 1100244 | B52: 公共安全共同财政事权转移支付收入
A53: 1100245 | B53: 教育共同财政事权转移支付收入 | C53: 748
A54: 1100246 | B54: 科学技术共同财政事权转移支付收入
A55: 1100247 | B55: 文化旅游体育与传媒共同财政事权转移支付收入
A56: 1100248 | B56: 社会保障和就业共同财政事权转移支付收入 | C56: 2503
A57: 1100249 | B57: 卫生健康共同财政事权转移支付收入 | C57: 2074
A58: 1100250 | B58: 节能环保 共同财政事权转移支付收入
A59: 1100251 | B59: 城乡社区共同财政事权转移支付收入
A60: 1100252 | B60: 农林水 共同财政事权转移支付收入
A61: 1100253 | B61: 交通运输 共同财政事权转移支付收入
A62: 1100254 | B62: 资源勘探信息等共同财政事权转移支付收入
A63: 1100255 | B63: 商业服务业等 共同财政事权转移支付收入
A64: 1100256 | B64: 金融共同财政事权转移支付收入
A65: 1100257 | B65: 自然资源海洋气象等共同财政事权转移支付收入
A66: 1100258 | B66: 住房保障共同财政事权转移支付收入
A67: 1100259 | B67: 粮油物资储备共同财政事权转移支付收入
A68: 1100260 | B68: 其他共同财政事权转移支付收入
A69: 1100299 | B69: 其他一般性转移支付收入
A70: 11003 | B70: （三）专项转移支付收入 | C70: =SUM(C71:C90) -> 57751
A71: 1100301 | B71: 一般公共服务 | C71: 1542
A72: 1100302 | B72: 外交
A73: 1100303 | B73: 国防支出 | C73: 501
A74: 1100304 | B74: 公共安全 | C74: 3246
A75: 1100305 | B75: 教育 | C75: 3765
A76: 1100306 | B76: 科学技术 | C76: 160
A77: 1100307 | B77: 文化旅游体育与传媒 | C77: 1232
A78: 1100308 | B78: 社会保障和就业 | C78: 4226
A79: 1100310 | B79: 卫生健康 | C79: 4144
A80: 1100311 | B80: 节能环保 | C80: 2096
A81: 1100312 | B81: 城乡社区 | C81: 562
A82: 1100313 | B82: 农林水 | C82: 8987
A83: 1100314 | B83: 交通运输 | C83: 23872
A84: 1100315 | B84: 资源勘探信息等 | C84: 0
A85: 1100316 | B85: 商业服务业等 | C85: 150
A86: 1100317 | B86: 金融
A87: 1100320 | B87: 自然资源海洋气象等 | C87: 313
A88: 1100321 | B88: 住房保障 | C88: 2180
A89: 1100322 | B89: 粮油物资储备 | C89: 760
A90: 1100399 | B90: 其他收入 | C90: 15
A91: 11006 | B91: （四）下级上解收入 | C91: =C92+C93 -> 20000
A92: 1100601 | B92: 体制上解收入 | C92: 20000
A93: 1100602 | B93: 专项上解收入
A94: 11008 | B94: （五）上年结转收入 | C94: =SUM(C95:C96) -> 26371
B95: 争取中央、省补助或动用历年结转 | C95: 26371
B96: 上年专项结转
A97: 11009 | B97: （六）调入资金 | C97: =C98 -> 20780
A98: 1100901 | B98: 调入一般公共预算资金 | C98: =SUM(C99:C100) -> 20780
A99: 110090102 | B99: 从政府性基金预算调入一般公共预算资金 | C99: 2161
A100: 110090103 | B100: 从其他资金调入一般公共预算资金 | C100: 18619
B101: 其中：从预算稳定调节基金调入
A102: 105 | B102: （七）债务收入 | C102: =C103 -> 0
A103: 10504 | B103: 地方政府债务收入 | C103: 0
A104: 1050401 | B104: 一般债务收入 | C104: 0
A105: 104040101 | B105: 地方政府一般债券收入
B106: 新增债券
B107: 置换债券
B109: 收 入 合 计 | C109: =C5+C32 -> 305952

Sheet 14、本级公共预算支出
A1: 附表14
A2: 市本级2019年一般公共预算支出明细表
C3: 单位:万元
A4: 科目编码 | B4: 科目名称 | C4: 金额
D5: 本级一般公共预算 | E5: 上级转移支付
B6: 一、本级一般公共预算支出合计 | C6: =C7+C114+C118+C143+C160+C173+C197+C273+C306+C323+C345+C398+C411+C422+C429+C432+C451+C461+C472+C487+C490+C495+C498 -> 264495 | D6: =D7+D114+D118+D143+D160+D173+D197+D273+D306+D323+D345+D398+D411+D422+D429+D432+D451+D461+D472+D487+D490+D495+D498 -> 189535 | E6: =E7+E114+E118+E143+E160+E173+E197+E273+E306+E323+E345+E398+E411+E422+E429+E432+E451+E461+E472+E487+E490+E495+E498 -> 74960
A7: 201 | B7: 一般公共服务支出 | C7: =C8+C15+C21+C31+C37+C42+C49+C51+C56+C60+C65+C68+C70+C73+C76+C80+C84+C89+C93+C97+C101+C103+C112 -> 34004 | D7: =D8+D15+D21+D31+D37+D42+D49+D51+D56+D60+D65+D68+D70+D73+D76+D80+D84+D89+D93+D97+D101+D103+D112 -> 32462 | E7: =E8+E15+E21+E31+E37+E42+E49+E51+E56+E60+E65+E68+E70+E73+E76+E80+E84+E89+E93+E97+E101+E103+E112 -> 1542
A8: 20101 | B8: 人大事务 | C8: =SUM(C9:C14) -> 851 | D8: =SUM(D9:D14) -> 826 | E8: =SUM(E9:E14) -> 25
A9: 2010101 | B9: 行政运行 | C9: 553 | D9: 553 | E9: 0
A10: 2010102 | B10: 一般行政管理事务 | C10: 118 | D10: 93 | E10: 25
A11: 2010104 | B11: 人大会议 | C11: 12 | D11: 12 | E11: 0
A12: 2010105 | B12: 人大立法 | C12: 5 | D12: 5 | E12: 0
A13: 2010106 | B13: 人大监督 | C13: 80 | D13: 80 | E13: 0
A14: 2010108 | B14: 代表工作 | C14: 83 | D14: 83 | E14: 0
A15: 20102 | B15: 政协事务 | C15: =SUM(C16:C20) -> 715 | D15: =SUM(D16:D20) -> 712 | E15: =SUM(E16:E20) -> 3
A16: 2010201 | B16: 行政运行 | C16: 469 | D16: 469 | E16: 0
A17: 2010202 | B17: 一般行政管理事务 | C17: 75 | D17: 72 | E17: 3
A18: 2010204 | B18: 政协会议 | C18: 59 | D18: 59 | E18: 0
A19: 2010205 | B19: 委员视察 | C19: 51 | D19: 51 | E19: 0
A20: 2010206 | B20: 参政议政 | C20: 60 | D20: 60 | E20: 0
A21: 20103 | B21: 政府办公厅（室）及相关机构事务 | C21: =SUM(C22:C30) -> 4500 | D21: =SUM(D22:D30) -> 4245 | E21: =SUM(E22:E30) -> 255
A22: 2010301 | B22: 行政运行 | C22: 797 | D22: 797 | E22: 0
A23: 2010302 | B23: 一般行政管理事务 | C23: 140 | D23: 140 | E23: 0
A24: 2010303 | B24: 机关服务 | C24: 708 | D24: 708 | E24: 0
A25: 2010304 | B25: 专项服务 | C25: 442 | D25: 442 | E25: 0
A26: 2010305 | B26: 专项业务活动 | C26: 497 | D26: 497 | E26: 0
A27: 2010306 | B27: 政务公开审批 | C27: 598 | D27: 598 | E27: 0
A28: 2010308 | B28: 信访事务 | C28: 359 | D28: 324 | E28: 35
A29: 2010350 | B29: 事业运行 | C29: 303 | D29: 303 | E29: 0
A30: 2010399 | B30: 其他政府办公厅（室）及相关机构事务支出 | C30: 656 | D30: 436 | E30: 220
A31: 20104 | B31: 发展与改革事务 | C31: =SUM(C32:C36) -> 909 | D31: =SUM(D32:D36) -> 826 | E31: =SUM(E32:E36) -> 83
A32: 2010401 | B32: 行政运行 | C32: 314 | D32: 314 | E32: 0
A33: 2010402 | B33: 一般行政管理事务 | C33: 170 | D33: 90 | E33: 80
A34: 2010408 | B34: 物价管理 | C34: 362 | D34: 362 | E34: 0
A35: 2010450 | B35: 事业运行 | C35: 22 | D35: 22 | E35: 0
A36: 2010499 | B36: 其他发展与改革事务支出 | C36: 40 | D36: 37 | E36: 3
A37: 20105 | B37: 统计信息事务 | C37: =SUM(C38:C41) -> 470 | D37: =SUM(D38:D41) -> 470 | E37: =SUM(E38:E41) -> 0
A38: 2010501 | B38: 行政运行 | C38: 258 | D38: 258 | E38: 0
A39: 2010502 | B39: 一般行政管理事务 | C39: 0 | D39: 0 | E39: 0
A40: 2010505 | B40: 专项统计业务 | C40: 132 | D40: 132 | E40: 0
A41: 2010507 | B41: 专项普查活动 | C41: 80 | D41: 80 | E41: 0
A42: 20106 | B42: 财政事务 | C42: =SUM(C43:C48) -> 1711 | D42: =SUM(D43:D48) -> 1137 | E42: =SUM(E43:E48) -> 574
A43: 2010601 | B43: 行政运行 | C43: 870 | D43: 870 | E43: 0
A44: 2010604 | B44: 预算改革业务 | C44: 213 | D44: 0 | E44: 213
A45: 2010605 | B45: 财政国库业务 | C45: 170 | D45: 70 | E45: 100
A46: 2010607 | B46: 信息化建设 | C46: 130 | D46: 130 | E46: 0
A47: 2010608 | B47: 财政委托业务支出 | C47: 67 | D47: 67 | E47: 0
A48: 2010699 | B48: 其他财政事务支出 | C48: 261 | D48: 0 | E48: 261
A49: 20107 | B49: 税收事务 | C49: =C50 -> 4000 | D49: =D50 -> 4000 | E49: =E50 -> 0
A50: 2010799 | B50: 其他税收事务支出 | C50: 4000 | D50: 4000 | E50: 0
A51: 20108 | B51: 审计事务 | C51: =SUM(C52:C55) -> 771 | D51: =SUM(D52:D55) -> 771 | E51: =SUM(E52:E55) -> 0
A52: 2010801 | B52: 行政运行 | C52: 356 | D52: 356 | E52: 0
A53: 2010802 | B53: 一般行政管理事务 | C53: 0 | D53: 0 | E53: 0
A54: 2010806 | B54: 信息化建设 | C54: 15 | D54: 15 | E54: 0
A55: 2010899 | B55: 其他审计事务支出 | C55: 400 | D55: 400 | E55: 0
A56: 20110 | B56: 人力资源事务 | C56: =SUM(C57:C59) -> 948 | D56: =SUM(D57:D59) -> 855 | E56: =SUM(E57:E59) -> 93
A57: 2011001 | B57: 行政运行 | C57: 91 | D57: 91 | E57: 0
A58: 2011008 | B58: 引进人才费用 | C58: 780 | D58: 750 | E58: 30
A59: 2011099 | B59: 其他人力资源事务支出 | C59: 77 | D59: 14 | E59: 63
A60: 20111 | B60: 纪检监察事务 | C60: =SUM(C61:C64) -> 6206 | D60: =SUM(D61:D64) -> 6206 | E60: =SUM(E61:E64) -> 0
A61: 2011101 | B61: 行政运行 | C61: 1255 | D61: 1255 | E61: 0
A62: 2011102 | B62: 一般行政管理事务 | C62: 2934 | D62: 2934 | E62: 0
A63: 2011104 | B63: 大案要案查处 | C63: 1700 | D63: 1700 | E63: 0
A64: 2011199 | B64: 其他纪检监察事务支出 | C64: 317 | D64: 317 | E64: 0
A65: 20113 | B65: 商贸事务 | C65: =SUM(C66:C67) -> 579 | D65: =SUM(D66:D67) -> 579 | E65: =SUM(E66:E67) -> 0
A66: 2011301 | B66: 行政运行 | C66: 1 | D66: 1 | E66: 0
A67: 2011308 | B67: 招商引资 | C67: 578 | D67: 578 | E67: 0
A68: 20123 | B68: 民族事务 | C68: =C69 -> 43 | D68: =D69 -> 43 | E68: =E69 -> 0
A69: 2012301 | B69: 行政运行 | C69: 43 | D69: 43 | E69: 0
A70: 20125 | B70: 港澳台事务 | C70: =SUM(C71:C72) -> 53 | D70: =SUM(D71:D72) -> 53 | E70: =SUM(E71:E72) -> 0
A71: 2012501 | B71: 行政运行 | C71: 32 | D71: 32 | E71: 0
A72: 2012505 | B72: 台湾事务 | C72: 21 | D72: 21 | E72: 0
A73: 20126 | B73: 档案事务 | C73: =SUM(C74:C75) -> 242 | D73: =SUM(D74:D75) -> 242 | E73: =SUM(E74:E75) -> 0
A74: 2012601 | B74: 行政运行 | C74: 143 | D74: 143 | E74: 0
A75: 2012699 | B75: 其他档案事务支出 | C75: 99 | D75: 99 | E75: 0
A76: 20128 | B76: 民主党派及工商联事务 | C76: =SUM(C77:C79) -> 138 | D76: =SUM(D77:D79) -> 138 | E76: =SUM(E77:E79) -> 0
A77: 2012801 | B77: 行政运行 | C77: 62 | D77: 62 | E77: 0
A78: 2012802 | B78: 一般行政管理事务 | C78: 30 | D78: 30 | E78: 0
A79: 2012804 | B79: 参政议政 | C79: 46 | D79: 46 | E79: 0
A80: 20129 | B80: 群众团体事务 | C80: =SUM(C81:C83) -> 599 | D80: =SUM(D81:D83) -> 599 | E80: =SUM(E81:E83) -> 0
A81: 2012901 | B81: 行政运行 | C81: 268 | D81: 268 | E81: 0
A82: 2012902 | B82: 一般行政管理事务 | C82: 277 | D82: 277 | E82: 0
A83: 2012999 | B83: 其他群众团体事务支出 | C83: 54 | D83: 54 | E83: 0
A84: 20131 | B84: 党委办公厅（室）及相关机构事务 | C84: =SUM(C85:C88) -> 1953 | D84: =SUM(D85:D88) -> 1950 | E84: =SUM(E85:E88) -> 3
A85: 2013101 | B85: 行政运行 | C85: 638 | D85: 638 | E85: 0
A86: 2013105 | B86: 专项业务 | C86: 1312 | D86: 1312 | E86: 0
A87: 2013150 | B87: 事业运行 | C87: 0 | D87: 0 | E87: 0
A88: 2013199 | B88: 其他党委办公厅（室）及相关机构事务支出 | C88: 3 | D88: 0 | E88: 3
A89: 20132 | B89: 组织事务 | C89: =SUM(C90:C92) -> 413 | D89: =SUM(D90:D92) -> 401 | E89: =SUM(E90:E92) -> 12
A90: 2013201 | B90: 行政运行 | C90: 317 | D90: 317 | E90: 0
A91: 2013202 | B91: 一般行政管理事务 | C91: 84 | D91: 84 | E91: 0
A92: 2013299 | B92: 其他组织事务支出 | C92: 12 | D92: 0 | E92: 12
A93: 20133 | B93: 宣传事务 | C93: =SUM(C94:C96) -> 425 | D93: =SUM(D94:D96) -> 415 | E93: =SUM(E94:E96) -> 10
A94: 2013301 | B94: 行政运行 | C94: 236 | D94: 236 | E94: 0
A95: 2013302 | B95: 一般行政管理事务 | C95: 82 | D95: 82 | E95: 0
A96: 2013399 | B96: 其他宣传事务支出 | C96: 108 | D96: 98 | E96: 10
A97: 20134 | B97: 统战事务 | C97: =SUM(C98:C100) -> 305 | D97: =SUM(D98:D100) -> 269 | E97: =SUM(E98:E100) -> 36
A98: 2013401 | B98: 行政运行 | C98: 74 | D98: 74 | E98: 0
A99: 2013402 | B99: 一般行政管理事务 | C99: 153 | D99: 153 | E99: 0
A100: 2013404 | B100: 宗教事务 | C100: 78 | D100: 42 | E100: 36
A101: 20136 | B101: 其他共产党事务支出 | C101: =C102 -> 20 | D101: =D102 -> 0 | E101: =E102 -> 20
A102: 2013699 | B102: 其他共产党事务支出 | C102: 20 | D102: 0 | E102: 20
A103: 20138 | B103: 市场监督管理事务 | C103: =SUM(C104:C111) -> 4052 | D103: =SUM(D104:D111) -> 3989 | E103: =SUM(E104:E111) -> 63
A104: 2013801 | B104: 行政运行 | C104: 2249 | D104: 2249 | E104: 0
A105: 2013802 | B105: 一般行政管理事务 | C105: 190 | D105: 190 | E105: 0
A106: 2013804 | B106: 市场监督管理专项 | C106: 624 | D106: 574 | E106: 50
A107: 2013805 | B107: 市场监管执法 | C107: 13 | D107: 0 | E107: 13
A108: 2013808 | B108: 信息化建设 | C108: 16 | D108: 16 | E108: 0
A109: 2013809 | B109: 市场监督管理技术支持 | C109: 60 | D109: 60 | E109: 0
A110: 2013850 | B110: 事业运行 | C110: 120 | D110: 120 | E110: 0
A111: 2013899 | B111: 其他市场监督管理事务 | C111: 780 | D111: 780 | E111: 0
A112: 20199 | B112: 其他一般公共服务支出 | C112: =C113 -> 4101 | D112: =D113 -> 3736 | E112: =E113 -> 365
A113: 2019999 | B113: 其他一般公共服务支出 | C113: 4101 | D113: 3736 | E113: 365
A114: 203 | B114: 国防支出 | C114: =C115 -> 768 | D114: =D115 -> 267 | E114: =E115 -> 501
A115: 20306 | B115: 国防动员 | C115: =SUM(C116:C117) -> 768 | D115: =SUM(D116:D117) -> 267 | E115: =SUM(E116:E117) -> 501
A116: 2030603 | B116: 人民防空 | C116: 300 | D116: 0 | E116: 300
A117: 2030607 | B117: 民兵 | C117: 468 | D117: 267 | E117: 201
A118: 204 | B118: 公共安全支出 | C118: =C119+C121+C127+C129+C139 -> 23000 | D118: =D119+D121+D127+D129+D139 -> 19754 | E118: =E119+E121+E127+E129+E139 -> 3246
A119: 20401 | B119: 武装警察部队 | C119: =C120 -> 487 | D119: =D120 -> 487 | E119: =E120 -> 0
A120: 2040199 | B120: 其他武装警察部队支出 | C120: 487 | D120: 487 | E120: 0
A121: 20402 | B121: 公安 | C121: =SUM(C122:C126) -> 21744 | D121: =SUM(D122:D126) -> 18657 | E121: =SUM(E122:E126) -> 3087
A122: 2040201 | B122: 行政运行 | C122: 11119 | D122: 11119 | E122: 0
A123: 2040203 | B123: 机关服务 | C123: 41 | D123: 0 | E123: 41
A124: 2040219 | B124: 信息化建设 | C124: 100 | D124: 100 | E124: 0
A125: 2040220 | B125: 执法办案 | C125: 6921 | D125: 4396 | E125: 2525
A126: 2040299 | B126: 其他公安支出 | C126: 3563 | D126: 3042 | E126: 521
A127: 20403 | B127: 国家安全 | C127: =C128 -> 100 | D127: =D128 -> 100 | E127: =E128 -> 0
A128: 2040304 | B128: 安全业务 | C128: 100 | D128: 100 | E128: 0
A129: 20406 | B129: 司法 | C129: =SUM(C130:C138) -> 570 | D129: =SUM(D130:D138) -> 411 | E129: =SUM(E130:E138) -> 159
A130: 2040601 | B130: 行政运行 | C130: 310 | D130: 310 | E130: 0
A131: 2040604 | B131: 基层司法业务 | C131: 15 | D131: 12 | E131: 3
A132: 2040605 | B132: 普法宣传 | C132: 15 | D132: 10 | E132: 5
A133: 2040607 | B133: 法律援助 | C133: 50 | D133: 8 | E133: 42
A134: 2040608 | B134: 国家统一法律职业资格考试 | C134: 2 | D134: 0 | E134: 2
A135: 2040609 | B135: 仲裁 | C135: 10 | D135: 10 | E135: 0
A136: 2040610 | B136: 社区矫正 | C136: 55 | D136: 6 | E136: 49
A137: 2040612 | B137: 法制建设 | C137: 53 | D137: 53 | E137: 0
A138: 2040699 | B138: 其他司法支出 | C138: 60 | D138: 2 | E138: 58
A139: 20409 | B139: 国家保密 | C139: =SUM(C140:C142) -> 100 | D139: =SUM(D140:D142) -> 100 | E139: =SUM(E140:E142) -> 0
A140: 2040901 | B140: 行政运行 | C140: 36 | D140: 36 | E140: 0
A141: 2040902 | B141: 一般行政管理事务 | C141: 14 | D141: 14 | E141: 0
A142: 2040905 | B142: 保密管理 | C142: 50 | D142: 50 | E142: 0
A143: 205 | B143: 教育支出 | C143: =C144+C147+C151+C156+C158 -> 26813 | D143: =D144+D147+D151+D156+D158 -> 23048 | E143: =E144+E147+E151+E156+E158 -> 3765
A144: 20501 | B144: 教育管理事务 | C144: =SUM(C145:C146) -> 2057 | D144: =SUM(D145:D146) -> 2057 | E144: =SUM(E145:E146) -> 0
A145: 2050101 | B145: 行政运行 | C145: 443 | D145: 443 | E145: 0
A146: 2050102 | B146: 一般行政管理事务 | C146: 1614 | D146: 1614 | E146: 0
A147: 20502 | B147: 普通教育 | C147: =SUM(C148:C150) -> 9690 | D147: =SUM(D148:D150) -> 8829 | E147: =SUM(E148:E150) -> 861
A148: 2050201 | B148: 学前教育 | C148: 673 | D148: 43 | E148: 630
A149: 2050204 | B149: 高中教育 | C149: 9006 | D149: 8786 | E149: 220
A150: 2050299 | B150: 其他普通教育支出 | C150: 11 | D150: 0 | E150: 11
A151: 20503 | B151: 职业教育 | C151: =SUM(C152:C155) -> 10240 | D151: =SUM(D152:D155) -> 7336 | E151: =SUM(E152:E155) -> 2904
A152: 2050302 | B152: 中专教育 | C152: 1559 | D152: 454 | E152: 1104
A153: 2050303 | B153: 技校教育 | C153: 2779 | D153: 2394 | E153: 385
A154: 2050305 | B154: 高等职业教育 | C154: 5882 | D154: 4467 | E154: 1415
A155: 2050399 | B155: 其他职业教育支出 | C155: 20 | D155: 20 | E155: 0
A156: 20508 | B156: 进修及培训 | C156: =C157 -> 2795 | D156: =D157 -> 2795 | E156: =E157 -> 0
A157: 2050802 | B157: 干部教育 | C157: 2795 | D157: 2795 | E157: 0
A158: 20599 | B158: 其他教育支出 | C158: =C159 -> 2032 | D158: =D159 -> 2032 | E158: =E159 -> 0
A159: 2059999 | B159: 其他教育支出 | C159: 2032 | D159: 2032 | E159: 0
A160: 206 | B160: 科学技术支出 | C160: =C161+C163+C165+C167+C170 -> 2831 | D160: =D161+D163+D165+D167+D170 -> 2671 | E160: =E161+E163+E165+E167+E170 -> 160
A161: 20601 | B161: 科学技术管理事务 | C161: =C162 -> 137 | D161: =D162 -> 137 | E161: =E162 -> 0
A162: 2060101 | B162: 行政运行 | C162: 137 | D162: 137 | E162: 0
A163: 20604 | B163: 技术研究与开发 | C163: =C164 -> 141 | D163: =D164 -> 0 | E163: =E164 -> 141
A164: 2060403 | B164: 产业技术研究与开发 | C164: 141 | D164: 0 | E164: 141
A165: 20605 | B165: 科技条件与服务 | C165: =C166 -> 1000 | D165: =D166 -> 1000 | E165: =E166 -> 0
A166: 2060502 | B166: 技术创新服务体系 | C166: 1000 | D166: 1000 | E166: 0
A167: 20607 | B167: 科学技术普及 | C167: =SUM(C168:C169) -> 139 | D167: =SUM(D168:D169) -> 135 | E167: =SUM(E168:E169) -> 4
A168: 2060701 | B168: 机构运行 | C168: 55 | D168: 55 | E168: 0
A169: 2060702 | B169: 科普活动 | C169: 84 | D169: 80 | E169: 4
A170: 20699 | B170: 其他科学技术支出 | C170: =SUM(C171:C172) -> 1415 | D170: =SUM(D171:D172) -> 1400 | E170: =SUM(E171:E172) -> 15
A171: 2069901 | B171: 科技奖励 | C171: 1400 | D171: 1400 | E171: 0
A172: 2069999 | B172: 其他科学技术支出 | C172: 15 | D172: 0 | E172: 15
A173: 207 | B173: 文化旅游体育与传媒支出 | C173: =C174+C184+C187+C189+C192+C195 -> 7042 | D173: =D174+D184+D187+D189+D192+D195 -> 5809 | E173: =E174+E184+E187+E189+E192+E195 -> 1232
A174: 20701 | B174: 文化和旅游 | C174: =SUM(C175:C183) -> 2771 | D174: =SUM(D175:D183) -> 1748 | E174: =SUM(E175:E183) -> 1023
A175: 2070101 | B175: 行政运行 | C175: 397 | D175: 397 | E175: 0
A176: 2070102 | B176: 一般行政管理事务 | C176: 25 | D176: 25 | E176: 0
A177: 2070104 | B177: 图书馆 | C177: 302 | D177: 279 | E177: 23
A178: 2070107 | B178: 艺术表演团体 | C178: 20 | D178: 20 | E178: 0
A179: 2070108 | B179: 文化活动 | C179: 65 | D179: 65 | E179: 0
A180: 2070110 | B180: 文化和旅游交流与合作 | C180: 1300 | D180: 300 | E180: 1000
A181: 2070111 | B181: 文化创作与保护 | C181: 50 | D181: 50 | E181: 0
A182: 2070112 | B182: 文化和旅游市场管理 | C182: 100 | D182: 100 | E182: 0
A183: 2070199 | B183: 其他文化和旅游支出 | C183: 511 | D183: 511 | E183: 0
A184: 20702 | B184: 文物 | C184: =SUM(C185:C186) -> 1373 | D184: =SUM(D185:D186) -> 1343 | E184: =SUM(E185:E186) -> 30
A185: 2070204 | B185: 文物保护 | C185: 576 | D185: 546 | E185: 30
A186: 2070205 | B186: 博物馆 | C186: 797 | D186: 797 | E186: 0
A187: 20703 | B187: 体育 | C187: =C188 -> 100 | D187: =D188 -> 100 | E187: =E188 -> 0
A188: 2070305 | B188: 体育竞赛 | C188: 100 | D188: 100 | E188: 0
A189: 20706 | B189: 新闻出版电影 | C189: =SUM(C190:C191) -> 194 | D189: =SUM(D190:D191) -> 135 | E189: =SUM(E190:E191) -> 59
A190: 2070605 | B190: 出版发行 | C190: 120 | D190: 120 | E190: 0
A191: 2070699 | B191: 其他新闻出版电影支出 | C191: 74 | D191: 15 | E191: 59
A192: 20708 | B192: 广播电视 | C192: =SUM(C193:C194) -> 2484 | D192: =SUM(D193:D194) -> 2484 | E192: =SUM(E193:E194) -> 0
A193: 2070804 | B193: 广播 | C193: 147 | D193: 147 | E193: 0
A194: 2070805 | B194: 电视 | C194: 2337 | D194: 2337 | E194: 0
A195: 20799 | B195: 其他文化体育与传媒支出 | C195: =C196 -> 120 | D195: =D196 -> 0 | E195: =E196 -> 120
A196: 2079999 | B196: 其他文化体育与传媒支出 | C196: 120 | D196: 0 | E196: 120
A197: 208 | B197: 社会保障和就业支出 | C197: =C198+C209+C214+C222+C224+C227+C233+C240+C246+C253+C256+C258+C260+C262+C264+C267+C269 -> 29129 | D197: =D198+D209+D214+D222+D224+D227+D233+D240+D246+D253+D256+D258+D260+D262+D264+D267+D269 -> 12716 | E197: =E198+E209+E214+E222+E224+E227+E233+E240+E246+E253+E256+E258+E260+E262+E264+E267+E269 -> 16413
A198: 20801 | B198: 人力资源和社会保障管理事务 | C198: =SUM(C199:C208) -> 1772 | D198: =SUM(D199:D208) -> 1738 | E198: =SUM(E199:E208) -> 34
A199: 2080101 | B199: 行政运行 | C199: 369 | D199: 369 | E199: 0
A200: 2080102 | B200: 一般行政管理事务 | C200: 32 | D200: 32 | E200: 0
... 320 more rows

Sheet 15、公共预算支出-经济分类
A1: 表15
A2: 市本级2019年一般公共预算支出政府经济分类情况表
Q3: 单位:万元
A4: 功能科目类名称 | B4: 总计 | C4: 机关工资福利支出 | D4: 机关商品和服务支出 | E4: 机关资本性支出（一） | F4: 机关资本性支出（二） | G4: 对事业单位经常性补助 | H4: 对事业单位资本性补助 | I4: 对企业补助 | J4: 对企业资本性支出 | K4: 对个人和家庭的补助 | L4: 对社会保障基金补助 | M4: 债务利息及费用支出 | N4: 债务还本支出 | O4: 转移性支出 | P4: 预备费及预留 | Q4: 其他支出
A5: 合计 | B5: 274,473 | C5: =SUM(C6:C29) -> 34,640 | D5: =SUM(D6:D29) -> 38,260 | E5: 50,223 | F5: 8,945 | G5: 42,928 | H5: 5,557 | I5: 18,150 | J5: 0 | K5: 12,979 | L5: 9,684 | M5: 4,618 | N5: 0 | O5: 9,978 | P5: 36,683 | Q5: 1,829
A6: 一般公共服务支出 | B6: 34,004 | C6: 11,090 | D6: 12,935 | E6: 1,379 | F6: 6,502 | G6: 1,875 | H6: 39 | I6: 0 | J6: 0 | K6: 115 | L6: 0 | M6: 0 | N6: 0 | O6: 0 | P6: 0 | Q6: 70
A7: 国防支出 | B7: 768 | C7: 0 | D7: 0 | E7: 768 | F7: 0 | G7: 0 | H7: 0 | I7: 0 | J7: 0 | K7: 0 | L7: 0 | M7: 0 | N7: 0 | O7: 0 | P7: 0 | Q7: 0
A8: 公共安全支出 | B8: 23,000 | C8: 8,404 | D8: 7,225 | E8: 7,146 | F8: 0 | G8: 10 | H8: 0 | I8: 0 | J8: 0 | K8: 215 | L8: 0 | M8: 0 | N8: 0 | O8: 0 | P8: 0 | Q8: 0
A9: 教育支出 | B9: 26,813 | C9: 655 | D9: 798 | E9: 4,030 | F9: 1,807 | G9: 15,151 | H9: 1,812 | I9: 0 | J9: 0 | K9: 2,491 | L9: 0 | M9: 0 | N9: 0 | O9: 0 | P9: 0 | Q9: 70
A10: 科学技术支出 | B10: 2,831 | C10: 139 | D10: 1,132 | E10: 160 | F10: 0 | G10: 0 | H10: 0 | I10: 1,400 | J10: 0 | K10: 0 | L10: 0 | M10: 0 | N10: 0 | O10: 0 | P10: 0 | Q10: 0
A11: 文化旅游体育与传媒支出 | B11: 7,042 | C11: 268 | D11: 1,916 | E11: 367 | F11: 0 | G11: 4,291 | H11: 99 | I11: 0 | J11: 0 | K11: 100 | L11: 0 | M11: 0 | N11: 0 | O11: 0 | P11: 0 | Q11: 0
A12: 社会保障和就业支出 | B12: 29,129 | C12: 4,815 | D12: 1,299 | E12: 9 | F12: 40 | G12: 3,213 | H12: 662 | I12: 200 | J12: 0 | K12: 9,207 | L12: 9,684 | M12: 0 | N12: 0 | O12: 0 | P12: 0 | Q12: 0
A13: 卫生健康支出 | B13: 11,270 | C13: 2,488 | D13: 3,887 | E13: 17 | F13: 0 | G13: 3,229 | H13: 696 | I13: 0 | J13: 0 | K13: 588 | L13: 0 | M13: 0 | N13: 0 | O13: 0 | P13: 0 | Q13: 365
A14: 节能环保支出 | B14: 5,599 | C14: 400 | D14: 2,897 | E14: 913 | F14: 0 | G14: 298 | H14: 8 | I14: 1,033 | J14: 0 | K14: 50 | L14: 0 | M14: 0 | N14: 0 | O14: 0 | P14: 0 | Q14: 0
A15: 城乡社区支出 | B15: 10,860 | C15: 1,399 | D15: 1,008 | E15: 1,349 | F15: 0 | G15: 5,674 | H15: 1,384 | I15: 0 | J15: 0 | K15: 6 | L15: 0 | M15: 0 | N15: 0 | O15: 0 | P15: 0 | Q15: 40
A16: 农林水支出 | B16: 14,323 | C16: 960 | D16: 1,645 | E16: 6,572 | F16: 96 | G16: 1,295 | H16: 81 | I16: 3,517 | J16: 0 | K16: 157 | L16: 0 | M16: 0 | N16: 0 | O16: 0 | P16: 0 | Q16: 0
A17: 交通运输支出 | B17: 31,712 | C17: 192 | D17: 164 | E17: 24,849 | F17: 0 | G17: 3,926 | H17: 585 | I17: 712 | J17: 0 | K17: 0 | L17: 0 | M17: 0 | N17: 0 | O17: 0 | P17: 0 | Q17: 1,284
A18: 资源勘探信息等支出 | B18: 8,152 | C18: 319 | D18: 663 | E18: 10 | F18: 0 | G18: 0 | H18: 0 | I18: 7,160 | J18: 0 | K18: 0 | L18: 0 | M18: 0 | N18: 0 | O18: 0 | P18: 0 | Q18: 0
A19: 商业服务业等支出 | B19: 1,509 | C19: 267 | D19: 152 | E19: 0 | F19: 0 | G19: 0 | H19: 0 | I19: 1,090 | J19: 0 | K19: 0 | L19: 0 | M19: 0 | N19: 0 | O19: 0 | P19: 0 | Q19: 0
A20: 援助其他地区支出 | B20: 140 | C20: 0 | D20: 140 | E20: 0 | F20: 0 | G20: 0 | H20: 0 | I20: 0 | J20: 0 | K20: 0 | L20: 0 | M20: 0 | N20: 0 | O20: 0 | P20: 0 | Q20: 0
A21: 自然资源海洋气象等支出 | B21: 2,066 | C21: 276 | D21: 88 | E21: 243 | F21: 0 | G21: 1,459 | H21: 0 | I21: 0 | J21: 0 | K21: 0 | L21: 0 | M21: 0 | N21: 0 | O21: 0 | P21: 0 | Q21: 0
A22: 住房保障支出 | B22: 9,350 | C22: 2,748 | D22: 1,830 | E22: 213 | F22: 0 | G22: 2,411 | H22: 191 | I22: 1,957 | J22: 0 | K22: 0 | L22: 0 | M22: 0 | N22: 0 | O22: 0 | P22: 0 | Q22: 0
A23: 粮油物资储备支出 | B23: 2,296 | C23: 89 | D23: 36 | E23: 1,060 | F23: 0 | G23: 25 | H23: 0 | I23: 1,081 | J23: 0 | K23: 0 | L23: 0 | M23: 5 | N23: 0 | O23: 0 | P23: 0 | Q23: 0
A24: 灾害防治及应急管理支出 | B24: 2,333 | C24: 130 | D24: 445 | E24: 1,138 | F24: 500 | G24: 70 | H24: 0 | I24: 0 | J24: 0 | K24: 50 | L24: 0 | M24: 0 | N24: 0 | O24: 0 | P24: 0 | Q24: 0
A25: 预备费 | B25: 3,000 | C25: 0 | D25: 0 | E25: 0 | F25: 0 | G25: 0 | H25: 0 | I25: 0 | J25: 0 | K25: 0 | L25: 0 | M25: 0 | N25: 0 | O25: 0 | P25: 3,000 | Q25: 0
A26: 其他支出 | B26: 33,683 | F26: 0 | G26: 0 | H26: 0 | I26: 0 | J26: 0 | K26: 0 | L26: 0 | M26: 0 | N26: 0 | O26: 0 | P26: 33,683 | Q26: 0
A27: 转移性支出 | B27: 9,978 | L27: 0 | M27: 0 | N27: 0 | O27: 9,978 | P27: 0 | Q27: 0
A28: 债务付息支出 | B28: 4,580 | C28: 0 | D28: 0 | E28: 0 | F28: 0 | G28: 0 | H28: 0 | I28: 0 | J28: 0 | K28: 0 | L28: 0 | M28: 4,580 | N28: 0 | O28: 0 | P28: 0 | Q28: 0
A29: 债务发行费用支出 | B29: 33 | C29: 0 | D29: 0 | E29: 0 | F29: 0 | G29: 0 | H29: 0 | I29: 0 | J29: 0 | K29: 0 | L29: 0 | M29: 33 | N29: 0 | O29: 0 | P29: 0 | Q29: 0

Sheet 16、公共预算支出-基本支出
A1: 表16
A2: 市本级2019年一般公共预算基本支出表 | G2: 市本级2019年一般公共预算基本支出表
E3: 单位:万元 | I3: 单位:万元
A4: 部门支出经济分类 | C4: 2019年预算数 | G4: 政府支出经济分类
A5: 科目编码 | B5: 科目名称 | C5: 合计 | D5: 人员支出 | E5: 公用支出 | G5: 科目编码 | H5: 科目名称 | I5: 公用支出
B6: 合计 | C6: 111,007 | D6: 99,638 | E6: 11,369 | H6: 合计 | I6: =I7+I12+I23+I27 -> 111,007
A7: 301 | B7: 工资福利支出 | C7: 98,415 | D7: 98,415 | E7: 0 | G7: 501 | H7: 机关工资福利支出 | I7: =SUM(I8:I11) -> 39,892
A8: 30101 | B8: 基本工资 | C8: 22,511 | D8: 22,511 | E8: 0 | G8: 50101 | H8: 工资奖金津补贴 | I8: 10,839
A9: 30102 | B9: 津贴补贴 | C9: 10,839 | D9: 10,839 | E9: 0 | G9: 50102 | H9: 社会保障缴费 | I9: 4,931
A10: 30103 | B10: 奖金（13个月） | C10: 5,785 | D10: 5,785 | E10: 0 | G10: 50103 | H10: 住房公积金 | I10: 2,016
A11: 30107 | B11: 绩效工资 | C11: 4,804 | D11: 4,804 | E11: 0 | G11: 50199 | H11: 其他工资福利支出 | I11: 22,106
A12: 30108 | B12: 机关事业单位基本养老保险缴费 | C12: 8,017 | D12: 8,017 | E12: 0 | G12: 502 | H12: 机关商品和服务支出 | I12: 8,005
A13: 30109 | B13: 职业年金缴费 | C13: 519 | D13: 519 | E13: 0 | G13: 50201 | H13: 办公经费 | I13: 3,030
A14: 30111 | B14: 公务员医疗补助缴费 | C14: 938 | D14: 938 | E14: 0 | G14: 50202 | H14: 会议费 | I14: 206
A15: 30112 | B15: 其他社会保障缴费 | C15: 2,609 | D15: 2,609 | E15: 0 | G15: 50203 | H15: 培训费 | I15: 224
A16: 30113 | B16: 住房公积金 | C16: 4,692 | D16: 4,692 | E16: 0 | G16: 50204 | H16: 专用材料购置费
A17: 30199 | B17: 其他工资福利支出 | C17: 37,701 | D17: 37,701 | E17: 0 | G17: 50205 | H17: 委托业务费 | I17: 1,800
A18: 302 | B18: 商品和服务支出 | C18: 11,369 | D18: 0 | E18: 11,369 | G18: 50206 | H18: 公务接待费 | I18: 268
A19: 30201 | B19: 办公费 | C19: 898 | D19: 0 | E19: 898 | G19: 50207 | H19: 因公出国（境）费用 | I19: 221
A20: 30202 | B20: 印刷费 | C20: 292 | D20: 0 | E20: 292 | G20: 50208 | H20: 公务用车运行维护费 | I20: 676
A21: 30205 | B21: 水费 | C21: 289 | D21: 0 | E21: 289 | G21: 50209 | H21: 维修(护)费 | I21: 764
A22: 30206 | B22: 电费 | C22: 869 | D22: 0 | E22: 869 | G22: 50299 | H22: 其他商品和服务支出 | I22: 816
A23: 30207 | B23: 邮电费 | C23: 282 | D23: 0 | E23: 282 | G23: 505 | H23: 对事业单位经常性补助 | I23: =SUM(I24:I26) -> 61,887
A24: 30208 | B24: 取暖费 | C24: 16 | D24: 0 | E24: 16 | G24: 50501 | H24: 工资福利支出 | I24: 42,928
A25: 30209 | B25: 物业管理费 | C25: 383 | D25: 0 | E25: 383 | G25: 50502 | H25: 商品和服务支出 | I25: 3,364
A26: 30211 | B26: 差旅费 | C26: 1,123 | D26: 0 | E26: 1,123 | G26: 50599 | H26: 其他对事业单位补助 | I26: 15,595
A27: 30212 | B27: 因公出国（境）费用 | C27: 221 | D27: 0 | E27: 221 | G27: 509 | H27: 对个人和家庭的补助 | I27: =SUM(I28:I30) -> 1,223
A28: 30213 | B28: 维修(护)费 | C28: 764 | D28: 0 | E28: 764 | G28: 50901 | H28: 社会福利和救助 | I28: 27
A29: 30215 | B29: 会议费 | C29: 206 | D29: 0 | E29: 206 | G29: 50902 | H29: 助学金
A30: 30216 | B30: 培训费 | C30: 224 | D30: 0 | E30: 224 | G30: 50505 | H30: 离退休费 | I30: 1,196
A31: 30217 | B31: 公务接待费 | C31: 268 | D31: 0 | E31: 268
A32: 30228 | B32: 工会经费 | C32: 598 | D32: 0 | E32: 598
A33: 30229 | B33: 福利费 | C33: 272 | D33: 0 | E33: 272
A34: 30231 | B34: 公务用车运行维护费 | C34: 676 | D34: 0 | E34: 676
A35: 30239 | B35: 公务交通补贴 | C35: 1,729 | D35: 0 | E35: 1,729
A36: 30299 | B36: 其他商品和服务支出 | C36: 2,258 | D36: 0 | E36: 2,258
A37: 303 | B37: 对个人和家庭的补助 | C37: 1,223 | D37: 1,223 | E37: 0
A38: 30301 | B38: 离休费 | C38: 193 | D38: 193 | E38: 0
A39: 30302 | B39: 退休费 | C39: 1,003 | D39: 1,003 | E39: 0
A40: 30304 | B40: 抚恤金 | C40: 27 | D40: 27 | E40: 0

Sheet 17、一般债务限额
A1: 表17
A2: 随州市2019年一般政府债务限额表
A3: 单位：万元
A4: 地 区 | B4: 一般债务
A5: 随州市 | B5: 819,284
A6: 随州市本级 | B6: 212,482
A7: 曾都区 | B7: 140,956
A8: 随县 | B8: 205,188
A9: 广水市 | B9: 260,658
A10: 备注：此限额为省财政厅提前通知限额

Sheet 18、税费返还转移支付
A1: 表18
A2: 市本级2019年税费返还和转移支付表
C3: 单位：万元
A4: 科目 | B4: 项 目 | C4: 预算数 | D4: 备注
B5: 合计 | C5: =C6+C8+C43 -> 116435
A6: 11001 | B6: （一）返还性收入 | C6: =SUM(C7:C7) -> 19054
A7: 1100199 | B7: 其它返还性收入 | C7: 19054
A8: 11002 | B8: （二）一般性转移支付收入 | C8: =SUM(C9:C42) -> 39630
A9: 1100202 | B9: 均衡性转移支付收入 | C9: 2864
A10: 1100207 | B10: 县级基本财力保障机制奖补资金收入 | C10: 24220
A11: 1100208 | B11: 结算补助收入 | C11: -35917
A12: 1100299 | B12: 激励性转移支付收入 | C12: 2237
A13: 11002 | B13: 政策性转移支付收入 | C13: 9737
A14: 1100215 | B14: 成品油税费改革转移支付补助收入 | C14: 3370
A15: 1100220 | B15: 基层公检法司转移支付收入 | C15: 4207
A16: 1100221 | B16: 城乡义务教育转移支付收入 | C16: 502
A17: 1100222 | B17: 基本养老金转移支付收入 | C17: 9684
A18: 1100225 | B18: 产粮大县奖励资金收入 | C18: 140
A19: 1100226 | B19: 重点生态功能区转移支付收入 | C19: 0
A20: 1100227 | B20: 固定数额补助收入 | C20: 13066
A21: 1100228 | B21: 革命老区转移支付收入 | C21: 195
A22: 1100241 | B22: 一般公共服务共同财政事权转移支付收入
A23: 1100242 | B23: 外交共同财政事权转移支付收入
A24: 1100243 | B24: 国防支出共同财政事权转移支付收入
A25: 1100244 | B25: 公共安全共同财政事权转移支付收入
A26: 1100245 | B26: 教育共同财政事权转移支付收入 | C26: 748
A27: 1100246 | B27: 科学技术共同财政事权转移支付收入
A28: 1100247 | B28: 文化旅游体育与传媒共同财政事权转移支付收入
A29: 1100248 | B29: 社会保障和就业共同财政事权转移支付收入 | C29: 2503
A30: 1100249 | B30: 卫生健康共同财政事权转移支付收入 | C30: 2074
A31: 1100250 | B31: 节能环保 共同财政事权转移支付收入
A32: 1100251 | B32: 城乡社区共同财政事权转移支付收入
A33: 1100252 | B33: 农林水 共同财政事权转移支付收入
A34: 1100253 | B34: 交通运输 共同财政事权转移支付收入
A35: 1100254 | B35: 资源勘探信息等共同财政事权转移支付收入
A36: 1100255 | B36: 商业服务业等 共同财政事权转移支付收入
A37: 1100256 | B37: 金融共同财政事权转移支付收入
A38: 1100257 | B38: 自然资源海洋气象等共同财政事权转移支付收入
A39: 1100258 | B39: 住房保障共同财政事权转移支付收入
A40: 1100259 | B40: 粮油物资储备共同财政事权转移支付收入
A41: 1100260 | B41: 其他共同财政事权转移支付收入
A42: 1100299 | B42: 其他一般性转移支付收入
A43: 11003 | B43: （三）专项转移支付收入 | C43: =SUM(C44:C63) -> 57751
A44: 1100301 | B44: 一般公共服务 | C44: 1542
A45: 1100302 | B45: 外交
A46: 1100303 | B46: 国防支出 | C46: 501
A47: 1100304 | B47: 公共安全 | C47: 3246
A48: 1100305 | B48: 教育 | C48: 3765
A49: 1100306 | B49: 科学技术 | C49: 160
A50: 1100307 | B50: 文化旅游体育与传媒 | C50: 1232
A51: 1100308 | B51: 社会保障和就业 | C51: 4226
A52: 1100310 | B52: 卫生健康 | C52: 4144
A53: 1100311 | B53: 节能环保 | C53: 2096
A54: 1100312 | B54: 城乡社区 | C54: 562
A55: 1100313 | B55: 农林水 | C55: 8987
A56: 1100314 | B56: 交通运输 | C56: 23872
A57: 1100315 | B57: 资源勘探信息等 | C57: 0
A58: 1100316 | B58: 商业服务业等 | C58: 150
A59: 1100317 | B59: 金融
A60: 1100320 | B60: 自然资源海洋气象等 | C60: 313
A61: 1100321 | B61: 住房保障 | C61: 2180
A62: 1100322 | B62: 粮油物资储备 | C62: 760
A63: 1100399 | B63: 其他收入 | C63: 15
A64: 备注：湖北省实行省管县财政体制，只有省对下分配的有税费返还和一般性转移支付，市级无对下税费返还和转移支付

Sheet 19、市级对下转移支付分项目分地区表
A1: 表19
A2: 市本级2019年一般公共预算对下专项转移支付情况表
I3: 单位：万元
A4: 科目编码 | B4: 科目名称 | C4: 项目名称 | D4: 总金额 | E4: 广水市 | F4: 随县 | G4: 曾都区 | H4: 高新区 | I4: 大洪山风景区
A5: 23003 | B5: 专项转移支付 | C5: 合计 | D5: =SUM(D6:D13) -> 9978
A6: 2300301 | B6: 一般公共服务 | C6: 基层党组织服务群众 | D6: 1000 | E6: 363 | F6: 353 | G6: 196 | H6: 69 | I6: 19
A7: 2300304 | B7: 公共安全 | C7: 社区网格化管理、城区治安防控体系建设 | D7: 785 | G7: 785
A8: 2300305 | B8: 教育 | C8: 学校旱厕改造 | D8: 500
A9: 2300308 | B9: 社会保障和就业 | C9: 社区工作经费 | D9: 116 | G9: 94 | H9: 22
A10: 2300312 | B10: 城乡社区 | C10: 城区主街道环卫市场化改革 | D10: 1418 | G10: 1418
A11: 2300313 | B11: 农林水 | C11: 精准扶贫、农业发展专项、农村厕所革命、农村垃圾无害化处理以奖代补 | D11: 5209 | E11: 1819 | F11: 2212 | G11: 834 | H11: 143 | I11: 201
A12: 2300317 | B12: 金融 | C12: 小额担保贷款贴息 | D12: 100
A13: 2300399 | B13: 其他支出 | C13: 区县补助 | D13: 850 | G13: 650 | I13: 200

Sheet 20、全市政府性基金收入
A1: 表20
A2: 2019年全市政府性基金预算收入明细表
B3: 单位：万元
A4: 收入
A5: 项目 | B5: 预算数
A6: 一、农网还贷资金收入
A7: 二、海南省高等级公路车辆通行附加费收入
A8: 三、港口建设费收入
A9: 四、国家电影事业发展专项资金收入
A10: 五、国有土地收益基金收入 | B10: 441
A11: 六、农业土地开发资金收入 | B11: 921
A12: 七、国有土地使用权出让收入 | B12: 299861
A13: 土地出让价款收入 | B13: 306096
A14: 补缴的土地价款
A15: 划拨土地收入
A16: 缴纳新增建设用地土地有偿使用费 | B16: -6235
A17: 其他土地出让收入
A18: 八、大中型水库库区基金收入
A19: 九、彩票公益金收入
A20: 福利彩票公益金收入
A21: 体育彩票公益金收入
A22: 十、城市基础设施配套费收入 | B22: 14034
A23: 十一、小型水库移民扶助基金收入
A24: 十二、国家重大水利工程建设基金收入
A25: 南水北调工程建设资金
A26: 三峡工程后续工作资金
A27: 省级重大水利工程建设资金
A28: 十三、车辆通行费
A29: 十四、污水处理费收入 | B29: 4335
A30: 十五、彩票发行机构和彩票销售机构的业务费用
A31: 十六、其他政府性基金收入 | B31: 69150
A32: 十七、专项债券对应项目专项收入
A208: 收入合计 | B208: 388742
A209: 转移性收入 | B209: 36938
A210: 政府性基金转移收入 | B210: 10535
A211: 政府性基金补助收入 | B211: 10535
A212: 政府性基金上解收入
A213: 上年结余收入 | B213: 21907
A214: 调入资金 | B214: 4496
A215: 其中：地方政府性基金调入专项收入 | B215: 673
A216: 地方政府专项债务收入
A217: 地方政府专项债务转贷收入
A221: 收入总计 | B221: 425680

Sheet 21、全市政府性基金支出
A1: 表21
A2: 全市2019年政府性基金预算支出表
B3: 单位：万元
A4: 支出
A5: 项目 | B5: 预算数
A6: 一、文化旅游体育与传媒支出 | B6: 30
A7: 国家电影事业发展专项资金安排的支出 | B7: 0
A8: 资助国产影片放映
A9: 资助影院建设
A10: 资助少数民族语电影译制
A11: 其他国家电影事业发展专项资金支出
A12: 旅游发展基金支出 | B12: 30
A13: 宣传促销
A14: 行业规划
A15: 旅游事业补助 | B15: 30
A16: 国家电影事业发展专项资金对应专项债务收入安排的支出 | B16: 0
A17: 资助城市影院
A18: 其他国家电影事业发展专项资金对应专项债务收入支出
A19: 二、社会保障和就业支出 | B19: 7339
A20: 大中型水库移民后期扶持基金支出 | B20: 7241
A21: 移民补助 | B21: 2251
A22: 基础设施建设和经济发展 | B22: 3000
A23: 其他大中型水库移民后期扶持基金支出 | B23: 1990
A24: 小型水库移民扶助基金安排的支出 | B24: 98
A25: 移民补助 | B25: 50
A26: 基础设施建设和经济发展 | B26: 48
A27: 其他小型水库移民扶助基金支出
A28: 小型水库移民扶助基金对应专项债务收入安排的支出 | B28: 0
A29: 基础设施建设和经济发展
A30: 其他小型水库移民扶助基金对应专项债务收入安排的支出
A31: 三、节能环保支出 | B31: 0
A32: 可再生能源电价附加收入安排的支出
A33: 废弃电器电子产品处理基金支出 | B33: 0
A34: 回收处理费用补贴
A35: 信息系统建设
A36: 基金征管经费
A37: 其他废弃电器电子产品处理基金支出
A38: 四、城乡社区支出 | B38: 383129
A39: 国有土地使用权出让收入及对应专项债务收入安排的支出 | B39: 290408
A40: 征地和拆迁补偿支出 | B40: 73395
A41: 土地开发支出 | B41: 15004
A42: 城市建设支出 | B42: 68570
A43: 农村基础设施建设支出 | B43: 67179
A44: 补助被征地农民支出 | B44: 27259
A45: 土地出让业务支出 | B45: 7161
A46: 廉租住房支出 | B46: 444
A47: 支付破产或改制企业职工安置费
A48: 棚户区改造支出 | B48: 3000
A49: 公共租赁住房支出 | B49: 1316
A50: 保障性住房租金补贴
A51: 其他国有土地使用权出让收入安排的支出 | B51: 27080
A52: 国有土地收益基金及对应专项债务收入安排的支出 | B52: 741
A53: 征地和拆迁补偿支出 | B53: 300
A54: 土地开发支出 | B54: 441
A55: 其他国有土地收益基金支出
A56: 农业土地开发资金安排的支出 | B56: 1345
A57: 城市基础设施配套费安排的支出 | B57: 15511
A58: 城市公共设施 | B58: 7578
A59: 城市环境卫生 | B59: 3264
A60: 公有房屋
A61: 城市防洪 | B61: 100
A62: 其他城市基础设施配套费安排的支出 | B62: 4569
A63: 污水处理费收入安排的支出 | B63: 4335
A64: 污水处理设施建设和运营 | B64: 4335
A65: 代征手续费
A66: 其他污水处理费安排的支出
A67: 土地储备专项债券收入安排的支出 | B67: 0
A68: 征地和拆迁补偿支出
A69: 土地开发支出
A70: 其他土地储备专项债券收入安排的支出
A71: 棚户区改造专项债券收入安排的支出 | B71: 69150
A72: 棚户区改造专项债券收入安排的支出 | B72: 69150
A73: 征地和拆迁补偿支出
A74: 土地开发支出
A75: 其他棚户区改造专项债券收入安排的支出
A76: 城市基础设施配套费对应专项债务收入安排的支出 | B76: 1639
A77: 城市公共设施
A78: 城市环境卫生 | B78: 1639
A79: 公有房屋
A80: 城市防洪
A81: 其他城市基础设施配套费对应专项债务收入安排的支出
A82: 污水处理费对应专项债务收入安排的支出 | B82: 0
A83: 污水处理设施建设和运营
A84: 其他污水处理费对应专项债务收入安排的支出
A85: 五、农林水支出 | B85: 0
A86: 大中型水库库区基金安排的支出 | B86: 0
A87: 基础设施建设和经济发展
A88: 解决移民遗留问题
A89: 库区防护工程维护
A90: 其他大中型水库库区基金支出
A91: 三峡水库库区基金支出 | B91: 0
A92: 基础设施建设和经济发展
A93: 解决移民遗留问题
A94: 库区维护和管理
A95: 其他三峡水库库区基金支出
A96: 国家重大水利工程建设基金安排的支出 | B96: 0
A97: 南水北调工程建设
A98: 三峡工程后续工作
A99: 地方重大水利工程建设
A100: 其他重大水利工程建设基金支出
A101: 大中型水库库区基金对应专项债务收入安排的支出 | B101: 0
A102: 基础设施建设和经济发展
A103: 其他大中型水库库区基金对应专项债务收入支出
A104: 国家重大水利工程建设基金对应专项债务收入安排的支出 | B104: 0
A105: 南水北调工程建设
A106: 三峡工程后续工作
A107: 地方重大水利工程建设
A108: 其他重大水利工程建设基金对应专项债务收入支出
A109: 六、交通运输支出 | B109: 0
A110: 海南省高等级公路车辆通行附加费安排的支出 | B110: 0
A111: 公路建设
A112: 公路养护
A113: 公路还贷
A114: 其他海南省高等级公路车辆通行附加费安排的支出
A115: 车辆通行费安排的支出 | B115: 0
A116: 公路还贷
A117: 政府还贷公路养护
A118: 政府还贷公路管理
A119: 其他车辆通行费安排的支出
A120: 港口建设费安排的支出 | B120: 0
A121: 港口设施
A122: 航道建设和维护
A123: 航运保障系统建设
A124: 其他港口建设费安排的支出
A125: 铁路建设基金支出 | B125: 0
A126: 铁路建设投资
A127: 购置铁路机车车辆
A128: 铁路还贷
A129: 建设项目铺底资金
A130: 勘测设计
A131: 注册资本金
A132: 周转资金
A133: 其他铁路建设基金支出
A134: 船舶油污损害赔偿基金支出 | B134: 0
A135: 应急处置费用
A136: 控制清除污染
A137: 损失补偿
A138: 生态恢复
A139: 监视监测
A140: 其他船舶油污损害赔偿基金支出
A141: 民航发展基金支出 | B141: 0
A142: 民航机场建设
A143: 空管系统建设
A144: 民航安全
A145: 航线和机场补贴
A146: 民航节能减排
A147: 通用航空发展
A148: 征管经费
A149: 其他民航发展基金支出
A150: 海南省高等级公路车辆通行附加费对应专项债务收入安排的支出 | B150: 0
A151: 公路建设
A152: 其他海南省高等级公路车辆通行附加费对应专项债务收入安排的支出
A153: 政府收费公路专项债券收入安排的支出 | B153: 0
A154: 公路建设
A155: 其他政府收费公路专项债券收入安排的支出
A156: 车辆通行费对应专项债务收入安排的支出
A157: 港口建设费对应专项债务收入安排的支出 | B157: 0
A158: 港口设施
A159: 航运保障系统建设
A160: 其他港口建设费对应专项债务收入安排的支出
A161: 七、资源勘探信息等支出 | B161: 0
A162: 农网还贷资金支出 | B162: 0
A163: 地方农网还贷资金支出
A164: 其他农网还贷资金支出
A165: 九、其他支出 | B165: 4366
A166: 其他政府性基金安排的支出 | B166: 585
A167: 彩票发行销售机构业务费安排的支出 | B167: 0
A168: 福利彩票发行机构的业务费支出
A169: 体育彩票发行机构的业务费支出
A170: 福利彩票销售机构的业务费支出
A171: 体育彩票销售机构的业务费支出
A172: 彩票兑奖周转金支出
A173: 彩票发行销售风险基金支出
A174: 彩票市场调控资金支出
A175: 其他彩票发行销售机构业务费安排的支出
A176: 彩票公益金安排的支出 | B176: 3781
A177: 用于社会福利的彩票公益金支出 | B177: 2801
A178: 用于体育事业的彩票公益金支出 | B178: 850
A179: 用于教育事业的彩票公益金支出
A180: 用于红十字事业的彩票公益金支出
A181: 用于残疾人事业的彩票公益金支出 | B181: 123
A182: 用于文化事业的彩票公益金支出
A183: 用于扶贫的彩票公益金支出
A184: 用于法律援助的彩票公益金支出
A185: 用于城乡医疗救助的彩票公益金支出 | B185: 7
A186: 用于其他社会公益事业的彩票公益金支出
A187: 十、债务付息支出 | B187: 10373
A188: 海南省高等级公路车辆通行附加费债务付息支出
A189: 港口建设费债务付息支出
A190: …… | B190: 1100
A191: 棚户区改造专项债券付息支出 | B191: 3823
A192: 其他地方自行试点项目收益专项债券付息支出
A193: 其他政府性基金债务付息支出 | B193: 5450
A194: 十一、债务发行费用支出 | B194: 22
A195: 海南省高等级公路车辆通行附加费债务发行费用支出
A196: 港口建设费债务发行费用支出
A197: ……
A198: 棚户区改造专项债券付息支出
A199: 其他地方自行试点项目收益专项债务发行费用支出
A200: 其他政府性基金债务发行费用支出 | B200: 22
... 10 more rows

Sheet 22、本级政府基金收入
A1: 附表22
A2: 市本级2019年政府性基金预算收入表
A4: 科目 | B4: 项目 | C4: 预算数 | D4: 备注
B5: 一、农业土地开发资金收入
A6: 1030148 | B6: 二、国有土地使用权出让收入 | C6: =SUM(C7:C10) -> 161437
A7: 103014801 | B7: 土地出让价款收入 | C7: 163932
A8: 103014802 | B8: 补缴的土地价款
A9: 103014898 | B9: 缴纳新增建设用地土地有偿使用费 | C9: -2495
A10: 103014899 | B10: 其他土地出让收入
A11: 1030180 | B11: 三、彩票发行机构和彩票销售机构的业务费用
A12: 103018003 | B12: 福利彩票销售机构的业务费用
A13: 103018004 | B13: 体育彩票销售机构的业务费用
A14: 1030156 | B14: 四、城市基础设施配套费收入 | C14: 2000
A15: 1300178 | B15: 五、污水处理费收入 | C15: 3200
A16: 1030199 | B16: 六、其他政府性基金收入
B18: 收入合计 | C18: =C5+C6+C11+C14+C15+C16 -> 166637
A19: 110 | B19: 转移性收入 | C19: =C20+C32+C36+C38 -> 22041
A20: 11004 | B20: 一、政府性基金转移收入 | C20: =C21+C31 -> 2223
A21: 1100401 | B21: 政府性基金补助收入 | C21: =SUM(C22:C30) -> 2223
B22: 大中型水库移民后期扶持基金补助 | C22: 251
B23: 车辆通行费安排的补助
B24: 基础设施建设和经济发展补助
B25: 地方旅游开发项目补助
B26: 社会福利的彩票公益金补助 | C26: 1200
B27: 体育事业的彩票公益金补助 | C27: 650
B28: 红十字事业的彩票公益金补助
B29: 残疾人事业的彩票公益金补助 | C29: 122
B30: 城乡医疗救助的彩票公益金补助
A31: 1100402 | B31: 政府性基金上解收入
A32: 11011 | B32: 二、 债务转贷收入 | C32: =C33 -> 0
A33: 1101102 | B33: 地方政府专项债务转贷收入 | C33: =SUM(C34:C35) -> 0
A34: 110110211 | B34: 国有土地使用权出让金债务转贷收入
A35: 110110231 | B35: 土地储备专项债券转贷收入
A36: 11008 | B36: 三、 上年结余收入 | C36: =C37 -> 19818
A37: 1100802 | B37: 政府性基金预算上年结余收入 | C37: 19818
A38: 11009 | B38: 四、 调入资金
B39: 收入总计 | C39: =C18+C19 -> 188678

Sheet 23、本级政府基金支出
A1: 附表23
A2: 市本级2019年政府性基金预算支出表
A4: 科目 | B4: 项 目 | C4: 预算数 | D4: 备注
A5: 208 | B5: 一、社会保障和就业支出 | C5: =C6 -> 251
A6: 20822 | B6: 大中型水库移民后期扶持基金支出 | C6: =SUM(C7:C8) -> 251
A7: 2082201 | B7: 移民补助 | C7: 251
A8: 2082202 | B8: 基础设施建设和经济发展
A9: 2082299 | B9: 其他大中型水库移民后期扶持资金支出
A10: 212 | B10: 二、城乡社区支出 | C10: =C11+C22+C23+C27 -> 161281
A11: 21208 | B11: 国有土地使用权出让收入及对应专项债务收入安排的支出 | C11: =SUM(C12:C21) -> 152801
A12: 2120801 | B12: 征地和拆迁补偿支出 | C12: 35672
A13: 2120802 | B13: 土地开发支出 | C13: 7644
A14: 2120803 | B14: 城市建设支出 | C14: 62892
A15: 2120804 | B15: 农村基础设施建设支出 | C15: 1000
A16: 2120805 | B16: 补助被征地农民支出 | C16: 20384
A17: 2120806 | B17: 土地出让业务支出 | C17: 3328
A18: 2120807 | B18: 廉租住房支出
A19: 2120810 | B19: 棚户区改造支出 | C19: 3000
A20: 2120811 | B20: 公共租赁住房支出 | C20: 1316
A21: 2120899 | B21: 其他国有土地使用权出让收入安排的支出 | C21: 17565
A22: 21211 | B22: 农业土地开发资金安排的支出 | C22: 164
A23: 21213 | B23: 城市基础设施配套费安排的支出 | C23: =SUM(C24:C26) -> 5116
A24: 2121301 | B24: 城市公共设施 | C24: 5116
A25: 2121302 | B25: 城市环境卫生
A26: 2121399 | B26: 其他城市基础设施配套费安排的支出 | C26: 0
A27: 21214 | B27: 污水处理费及对应专项债务收入安排的支出 | C27: =SUM(C28:C29) -> 3200
A28: 2121401 | B28: 污水处理设施建设和运营 | C28: 3200
A29: 2121499 | B29: 其他污水处理费安排的支出
A30: 214 | B30: 三、交通运输支出 | C30: =C31 -> 0
A31: 21462 | B31: 车辆通行费安排的支出 | C31: 0
A32: 2146299 | B32: 其他车辆通行费安排的支出
A33: 215 | B33: 四、资源勘探信息等支出 | C33: 0
A34: 21562 | B34: 农网还贷资金支出 | C34: 0
A35: 2156202 | B35: 地方农网还贷资金支出
A36: 216 | B36: 五、商业服务业等支出 | C36: 0
A37: 21660 | B37: 旅游发展基金支出 | C37: 0
A38: 2166004 | B38: 地方旅游开发项目补助
A39: 229 | B39: 六、其他支出 | C39: =C42+C40 -> 3142
A40: 22904 | B40: 其他政府性基金及对应专项债务收入安排的支出 | C40: =C41 -> 585
A41: 2290101 | B41: 其他政府性基金安排的支出 | C41: 585
A42: 22960 | B42: 彩票公益金安排的支出 | C42: =SUM(C43:C47) -> 2557
A43: 2296002 | B43: 用于社会福利的彩票公益金支出 | C43: 1585
A44: 2296003 | B44: 用于体育事业的彩票公益金支出 | C44: 850
A45: 2296005 | B45: 用于红十字事业的彩票公益金支出
A46: 2296006 | B46: 用于残疾人事业的彩票公益金支出 | C46: 122
A47: 2296013 | B47: 用于城乡医疗求助的彩票公益金支出
A48: 232 | B48: 七、债务付息支出 | C48: =C49 -> 5450
A49: 23204 | B49: 地方政府专项债务付息支出 | C49: =SUM(C50:C51) -> 5450
A50: 2320411 | B50: 国有土地使用权出让金债务付息支出 | C50: 5450
A51: 2320431 | B51: 土地储备专项债券付息支出
A52: 233 | B52: 八、债务发行费用支出 | C52: =C53 -> 22
A53: 23304 | B53: 地方政府专项债务发行费用支出 | C53: =SUM(C54:C55) -> 22
A54: 2330411 | B54: 国有土地使用权出让金债务发行费用支出 | C54: 22
A55: 2330431 | B55: 土地储备专项债券发行费用支出
B56: 支出合计 | C56: =C5+C10+C30+C33+C36+C39+C48+C52 -> 170146
A57: 230 | B57: 转移性支出 | C57: =SUM(C58:C61) -> 18532
A58: 23004 | B58: 政府性基金转移支付
A59: 23008 | B59: 调出资金 | C59: 4000
A60: 23009 | B60: 年终结余 | C60: 14532
A61: 23011 | B61: 债务转贷支出
A62: 231 | B62: 债务还本支出 | C62: =C63 -> 0
A63: 23104 | B63: 地方政府专项债务还本支出
B64: 支出总计 | C64: =C56+C57+C62 -> 188678

Sheet 24、政府基金转移支付
A1: 表24
A2: 市本级2019年政府性基金转移支付表
D3: 单位：万元
A4: 科目 | B4: 项目 | C4: 预算数 | D4: 备注
A5: 11004 | B5: 一、政府性基金转移收入 | C5: =C6+C16 -> 2223
A6: 1100401 | B6: 政府性基金补助收入 | C6: =SUM(C7:C15) -> 2223
B7: 大中型水库移民后期扶持基金补助 | C7: 251
B8: 车辆通行费安排的补助
B9: 基础设施建设和经济发展补助
B10: 地方旅游开发项目补助
B11: 社会福利的彩票公益金补助 | C11: 1200
B12: 体育事业的彩票公益金补助 | C12: 650
B13: 红十字事业的彩票公益金补助
B14: 残疾人事业的彩票公益金补助 | C14: 122
B15: 城乡医疗救助的彩票公益金补助
A16: 1100402 | B16: 政府性基金上解收入
A17: 备注：湖北省实行省管县财政体制，政府性基金只有省对下转移支付，市级无对下转移支付

Sheet 25、政府专项债务限额
A1: 表25
A2: 2019年随州市专项政府债务限额表
A3: 单位：万元
A4: 地 区 | B4: 专项债务
A5: 随州市 | B5: 455,594
A6: 随州市本级 | B6: 227,384
A7: 曾都区 | B7: 36,486
A8: 随县 | B8: 85,087
A9: 广水市 | B9: 106,637
A10: 备注：此限额为省财政厅提前通知限额

Sheet 26、社保基金收入
A1: 附表26
A2: 市本级2019年社会保险基金预算收入表
C3: 单位：万元
A4: 收入科目 | B4: 收入项目 | C4: 预算数
B5: 市本级社会保险基金收入合计 | C5: =C6+C30+C26+C14+C34+C18+C10+C22 -> 81952
A6: 10201 | B6: 一、企业职工基本养老保险基金收入 | C6: =C7+C8+C9 -> 37937
A7: 1020101 | B7: 其中：企业职工基本养老保险保险费收入 | C7: 26231
A8: 1020102 | B8: 企业职工基本养老保险基金财政补贴收入 | C8: 9456
A9: 1020103 | B9: 企业职工基本养老保险基金利息收入 | C9: 2250
A10: 10202 | B10: 二、失业保险基金收入 | C10: =C11+C12+C13 -> 1137
A11: 1200201 | B11: 其中：失业保险费收入 | C11: 1050
A12: 1200202 | B12: 失业保险基金财政补贴收入
A13: 1200203 | B13: 失业保险基金利息收入 | C13: 87
A14: 10203 | B14: 三、城镇职工基本医疗保险基金收入 | C14: =C15+C16+C17 -> 17136
A15: 1020301 | B15: 其中：城镇职工基本医疗保险费收入 | C15: 16526
A16: 1020302 | B16: 城镇职工基本医疗保险基金 财政补贴收入
A17: 1020303 | B17: 城镇职工基本医疗保险基金利息收入 | C17: 610
A18: 10204 | B18: 四、工伤保险基金收入 | C18: =C19+C20+C21 -> 1228
A19: 1020401 | B19: 其中：工伤保险费收入 | C19: 1160
A20: 1020402 | B20: 工伤保险基金 财政补贴收入
A21: 1020403 | B21: 工伤保险基金利息收入 | C21: 68
A22: 10205 | B22: 五、生育保险基金收入 | C22: =C23+C24+C25 -> 688
A23: 1020501 | B23: 其中：生育保险费收入 | C23: 633
A24: 1020502 | B24: 生育保险基金财政补贴收入
A25: 1020503 | B25: 生育保险基金利息收入 | C25: 55
A26: 10210 | B26: 六、城乡居民基本养老保险基金收入 | C26: =C27+C28+C29 -> 0
A27: 1021001 | B27: 其中：城乡居民基本养老保险费收入
A28: 1021002 | B28: 城乡居民基本养老保险基金财政补贴收入
A29: 1021003 | B29: 城乡居民基本养老保险基金利息收入
A30: 10211 | B30: 七、机关事业单位基本养老保险基金收入 | C30: =C31+C32+C33 -> 23826
A31: 1021101 | B31: 其中：机关事业单位基本养老保险费收入 | C31: 20826
A32: 1021102 | B32: 机关事业单位基本养老保险基金财政补贴收入 | C32: 2755
A33: 1021103 | B33: 机关事业单位基本养老保险基金利息收入 | C33: 245
A34: 10212 | B34: 八、城乡居民基本医疗保险基金收入
A35: 1021201 | B35: 其中：城乡居民基本医疗保险费收入
A36: 1021202 | B36: 城乡居民基本医疗保险基金 财政补贴收入
A37: 1021203 | B37: 城乡居民基本医疗保险基金利息收入

Sheet 27、社保基金支出
A1: 附表27
A2: 市本级2019年社会保险基金预算支出表
C3: 单位：万元
A4: 支出科目 | B4: 支出项目 | C4: 预算数
B5: 市本级社会保险基金支出合计 | C5: =C6+C24+C21+C12+C27+C15+C9+C18 -> 71092
A6: 20901 | B6: 一、企业职工基本养老保险基金支出 | C6: =SUM(C7:C8) -> 32681
A7: 2090101 | B7: 其中：基本养老金支出 | C7: 31627
A8: 2090199 | B8: 其他基本养老保险基金支出 | C8: 1054
A9: 20902 | B9: 二、失业保险基金支出 | C9: 1373
A10: 2090201 | B10: 其中：失业保险金支出 | C10: 1321
A11: 2090299 | B11: 其他失业保险基金支出 | C11: 52
A12: 20903 | B12: 三、城镇职工基本医疗保险基金支出 | C12: 12537
A13: 2090301 | B13: 其中：基本医疗保险待遇支出 | C13: 12527
A14: 2090399 | B14: 其他基本医疗保险基金支出 | C14: 10
A15: 20904 | B15: 四、工伤保险基金支出
A16: 2090401 | B16: 其中：工伤保险待遇支出 | C16: 985
A17: 2090499 | B17: 其他工伤保险基金支出
A18: 20905 | B18: 五、生育保险基金支出 | C18: 1451
A19: 2090501 | B19: 其中：生育保险待遇支出 | C19: 1451
A20: 2090599 | B20: 其他生育保险基金支出
A21: 20910 | B21: 六、城乡居民基本养老保险基金支出
A22: 2091001 | B22: 其中：基本养老金支出
A23: 2091099 | B23: 其他基本养老保险基金支出
A24: 20911 | B24: 七、机关事业单位基本养老保险基金支出 | C24: 23050
A25: 2091101 | B25: 其中：基本养老金支出 | C25: 22850
A26: 2091199 | B26: 其他基本养老保险基金支出 | C26: 200
A27: 20912 | B27: 八、城乡居民基本医疗保险基金支出
A28: 2091201 | B28: 其中：基本医疗保险待遇支出
A29: 2091299 | B29: 其他基本养老保险基金支出

Sheet 28、社保基金结余
A1: 附表28
A2: 市本级2019年社会保险基金预算结余表
B3: 单位：万元
A4: 项 目 | B4: 预算数
A5: 市本级社会保险基金年末滚存结余 | B5: =SUM(B6:B13) -> 136273
A6: 一、企业职工基本养老保险金年末滚存结余 | B6: 77206
A7: 二、失业保险基金年末滚存结余 | B7: 2597
A8: 三、城镇职工基本医疗保险基金年末滚存结余 | B8: 41400
A9: 四、工伤保险基金年末滚存结余 | B9: 4926
A10: 五、生育保险基金年末滚存结余 | B10: 2063
A11: 六、城乡居民基本养老保险基金年末结余
A12: 七、机关事业单位基本养老保险基本年末滚存结余 | B12: 8081
A13: 八、城乡居民基本医疗保险基金支出

Sheet 29、全市国有资本经营收入
A1: 表29
A2: 全市2019年国有资本经营预算收入表
A3: 填报单位： | H3: 单位：万元
A4: 收 入
A5: 项 目 | B5: 行次 | C5: 2018年执行数 | F5: 2019年预算数
C6: 合计 | D6: 省本级 | E6: 地市级及以下 | F6: 合计 | G6: 省本级 | H6: 地市级及以下
A7: 栏次 | C7: 1 | D7: 2 | E7: 3 | F7: 4 | G7: 5 | H7: 6
A8: 一、利润收入 | B8: 1 | F8: 750 | H8: 750
A9: 二、股利、股息收入 | B9: 2
A10: 三、产权转让收入 | B10: 3 | C10: 2617 | E10: 2617
A11: 四、清算收入 | B11: 4
A12: 五、其他国有资本经营预算收入 | B12: 5 | C12: 676 | E12: 676 | F12: 2172 | H12: 2172
B13: 6
A14: 收 入 合 计 | B14: 7 | C14: 3293 | E14: 3293 | F14: 2922 | H14: 2922
A15: 国有资本经营预算转移支付收入 | B15: 8
A16: 上年结转 | B16: 9
B17: 10
A18: 收 入 总 计 | B18: 11 | C18: 3293 | E18: 3293 | F18: 2922 | H18: 2922
A19: 注: 以上项目以2019年政府收支科目为准。

Sheet 30、全市国有资本经营支出
A1: 表30
A2: 全市2019年国有资本经营预算支出表
H3: 金额单位：万元
A4: 支 出
A5: 项 目 | B5: 行次 | C5: 2018年执行数 | F5: 2019年预算数
C6: 合计 | D6: 省本级 | E6: 地市级及以下 | F6: 合计 | G6: 省本级 | H6: 地市级及以下
A7: 栏次 | C7: 7 | D7: 8 | E7: 9 | F7: 10 | G7: 11 | H7: 12
A8: 一、解决历史遗留问题及改革成本支出 | B8: 36
A9: 二、国有企业资本金注入 | B9: 39 | F9: 750 | H9: 750
A10: 三、国有企业政策性补贴 | B10: 42
A11: 四、金融国有资本经营预算支出 | B11: 45
A12: 五、其他国有资本经营预算支出 | B12: 48 | C12: 3269 | E12: 3269 | F12: 1775 | H12: 1775
B13: 51
A14: 支 出 合 计 | B14: 54 | C14: 2637 | E14: 2637 | F14: 830 | H14: 830
A15: 国有资本经营预算转移支付支出 | B15: 57 | C15: —— | E15: —— | F15: —— | H15: ——
A16: 国有资本经营预算调出资金 | B16: 60 | C16: 24 | E16: 24 | F16: 397 | H16: 397
A17: 结转下年 | B17: 63
A18: 支 出 总 计 | B18: 66 | C18: 3293 | E18: 3293 | F18: 2922 | H18: 2922

Sheet 31、本级国有资本经营预算收入
A1: 附表31
A2: 市本级2019年国有资本经营预算收入表
A3: 编制单位：市国资委 市财政局 | C3: 单位：万元
A4: 科目 | B4: 项 目 | C4: 预算数 | D4: 备注
A5: 1030601 | B5: 一、利润收入 | C5: 2092
A6: 103060134 | B6: 其他国有资本经营预算企业利润收入 | C6: =SUM(C7:C14) -> 2092
B7: 随州市金盾押运公司 | C7: 20
B8: 随州市城投集团 | C8: 439
B9: 随州市城建投公司 | C9: 1173
B10: 随州市高新投 | C10: 100
B11: 随州市交通投资建设有限公司 | C11: 72
B12: 随州市金控集团 | C12: 184
B13: 随州市建设设计院 | C13: 4
B14: 其他 | C14: 100
A15: 1030602 | B15: 二、股利、股息收入
A16: 103060202 | B16: 国有控股公司股利、股息收入
A17: 103060203 | B17: 国有参股公司股利、股息收入
A18: 1030603 | B18: 三、产权转让收入
A19: 103060304 | B19: 国有股权、股份转让收入
A20: 1030604 | B20: 四、清算收入
A21: 1030698 | B21: 五、其他国有资本经营收入
B22: 市 级 国 有 资 本 经 营 收 入合计 | C22: 2092
A23: 11005 | B23: 国有资本经营预算转移支付收入 | C23: 0
B24: 收 入 总计 | C24: 2092

Sheet 32、本级国有资本经营预算支出
A1: 附表32
A2: 市本级2019年国有资本经营预算支出表
A3: 编制单位：市国资委 市财政局 | C3: 单位：万元
A4: 科目 | B4: 项 目 | C4: 预算数 | D4: 备注
A5: 208 | B5: 一、社会保障和就业支出 | C5: 0
A6: 20804 | B6: 补充全国社会保障基金 | C6: 0
A7: 2080451 | B7: 国有资本经营预算补充社保基金支出 | C7: 0
A8: 223 | B8: 二、国有资本经营预算支出 | C8: =C9+C10 -> 1695
A9: 22301 | B9: 解决历史遗留问题及改革成本支出 | C9: 0
A10: 22399 | B10: 其他国有资本经营预算支出 | C10: =C11 -> 1695
A11: 2239901 | B11: 其他国有资本经营预算支出 | C11: 1695 | D11: 用于城投、建投、交投、高新投高铁站前广场、城市综合管网、政务路等城市公共建设1456万元。国资监管费用50万元，增加金控集团政府资本金、金盾押运公司购置车辆费、建筑设计院购置费、不可预见支出等。
B12: 市 级 国 有 资 本 经 营 支 出合计 | C12: =C5+C8 -> 1695
A13: 230 | B13: 转移性支出 | C13: =C14 -> 397
A14: 23008 | B14: 调出资金 | C14: 397
A15: 2300803 | B15: 国有资本经营预算调出资金 | C15: 397 | D15: 根据国务院规定，从国有资本经营预算收入中提取19%用于补充市级社保基金
B16: 支出总计 | C16: =C12+C13 -> 2092

Sheet 33、国有资本经营预算对下转移支付表
A1: 附表33
A2: 市本级2019年国有资本经营预算对下转移支付表
A3: 编制单位：市国资委 市财政局 | C3: 单位：万元
A4: 科目 | B4: 项 目 | C4: 预算数 | D4: 备注
B5: 转移性支出
B6: 对下转移支付
B7: 支出总计
A8: 说明：市本级2019年国有资本经营预算未安排对下转移支付预算

Sheet 34、市本级税费返还和转移支付表
A1: 表34
A2: 市本级2019年税费返还和转移支付表
C3: 单位：万元
A4: 科目 | B4: 项 目 | C4: 预算数 | D4: 备注
B5: 合计 | C5: =C6+C8+C43 -> 116435
A6: 11001 | B6: （一）返还性收入 | C6: =SUM(C7:C7) -> 19054
A7: 1100199 | B7: 其它返还性收入 | C7: 19054
A8: 11002 | B8: （二）一般性转移支付收入 | C8: =SUM(C9:C42) -> 39630
A9: 1100202 | B9: 均衡性转移支付收入 | C9: 2864
A10: 1100207 | B10: 县级基本财力保障机制奖补资金收入 | C10: 24220
A11: 1100208 | B11: 结算补助收入 | C11: -35917
A12: 1100299 | B12: 激励性转移支付收入 | C12: 2237
A13: 11002 | B13: 政策性转移支付收入 | C13: 9737
A14: 1100215 | B14: 成品油税费改革转移支付补助收入 | C14: 3370
A15: 1100220 | B15: 基层公检法司转移支付收入 | C15: 4207
A16: 1100221 | B16: 城乡义务教育转移支付收入 | C16: 502
A17: 1100222 | B17: 基本养老金转移支付收入 | C17: 9684
A18: 1100225 | B18: 产粮大县奖励资金收入 | C18: 140
A19: 1100226 | B19: 重点生态功能区转移支付收入 | C19: 0
A20: 1100227 | B20: 固定数额补助收入 | C20: 13066
A21: 1100228 | B21: 革命老区转移支付收入 | C21: 195
A22: 1100241 | B22: 一般公共服务共同财政事权转移支付收入
A23: 1100242 | B23: 外交共同财政事权转移支付收入
A24: 1100243 | B24: 国防支出共同财政事权转移支付收入
A25: 1100244 | B25: 公共安全共同财政事权转移支付收入
A26: 1100245 | B26: 教育共同财政事权转移支付收入 | C26: 748
A27: 1100246 | B27: 科学技术共同财政事权转移支付收入
A28: 1100247 | B28: 文化旅游体育与传媒共同财政事权转移支付收入
A29: 1100248 | B29: 社会保障和就业共同财政事权转移支付收入 | C29: 2503
A30: 1100249 | B30: 卫生健康共同财政事权转移支付收入 | C30: 2074
A31: 1100250 | B31: 节能环保 共同财政事权转移支付收入
A32: 1100251 | B32: 城乡社区共同财政事权转移支付收入
A33: 1100252 | B33: 农林水 共同财政事权转移支付收入
A34: 1100253 | B34: 交通运输 共同财政事权转移支付收入
A35: 1100254 | B35: 资源勘探信息等共同财政事权转移支付收入
A36: 1100255 | B36: 商业服务业等 共同财政事权转移支付收入
A37: 1100256 | B37: 金融共同财政事权转移支付收入
A38: 1100257 | B38: 自然资源海洋气象等共同财政事权转移支付收入
A39: 1100258 | B39: 住房保障共同财政事权转移支付收入
A40: 1100259 | B40: 粮油物资储备共同财政事权转移支付收入
A41: 1100260 | B41: 其他共同财政事权转移支付收入
A42: 1100299 | B42: 其他一般性转移支付收入
A43: 11003 | B43: （三）专项转移支付收入 | C43: =SUM(C44:C63) -> 57751
A44: 1100301 | B44: 一般公共服务 | C44: 1542
A45: 1100302 | B45: 外交
A46: 1100303 | B46: 国防支出 | C46: 501
A47: 1100304 | B47: 公共安全 | C47: 3246
A48: 1100305 | B48: 教育 | C48: 3765
A49: 1100306 | B49: 科学技术 | C49: 160
A50: 1100307 | B50: 文化旅游体育与传媒 | C50: 1232
A51: 1100308 | B51: 社会保障和就业 | C51: 4226
A52: 1100310 | B52: 卫生健康 | C52: 4144
A53: 1100311 | B53: 节能环保 | C53: 2096
A54: 1100312 | B54: 城乡社区 | C54: 562
A55: 1100313 | B55: 农林水 | C55: 8987
A56: 1100314 | B56: 交通运输 | C56: 23872
A57: 1100315 | B57: 资源勘探信息等 | C57: 0
A58: 1100316 | B58: 商业服务业等 | C58: 150
A59: 1100317 | B59: 金融
A60: 1100320 | B60: 自然资源海洋气象等 | C60: 313
A61: 1100321 | B61: 住房保障 | C61: 2180
A62: 1100322 | B62: 粮油物资储备 | C62: 760
A63: 1100399 | B63: 其他收入 | C63: 15

Sheet 35、市本级三公经费汇总表
A1: 表35
A2: 2019年市本级“三公”经费预算汇总表
A4: 填报单位：随州市本级 | F4: 单位：万元
A5: 三公总计 | B5: 公务接待费 | C5: 因公出国（境）费 | D5: 公务用车
D8: 合计 | E8: 运行维护费 | F8: 购置费
A9: 2,788.00 | B9: 430.00 | C9: 380.00 | D9: 1,978.00 | E9: 1,635.00 | F9: 343.00
